{"text_format":"1","workbook":"xlsx","n_sheets":2,"sheets":["A","DataBasez"],"not_rendered":{"charts":0,"images":0,"macros":1,"external_links":0,"defined_names":12,"comments":0,"pivot_tables":0},"unopened":[],"bounds":{"document_bytes":16777216,"sheet_cells":100000,"rows_first":2000,"rows_last":500,"rows_between":2000,"halvings":0,"cell_chars":16384,"cell_head_chars":4096},"cells_cut":0,"cells_raw":0,"read":"whole","date_system":"1900"}

{"sheet":"A","index":0,"n_rows":12,"n_cols":20,"rows_kept":12,"cut":false,"hidden":false,"merged":[]}
["Seating Chart for Room 105"]
["There are 3 sections in Room 105 - Left, Middle & Right - looking"]
["toward front of room. Sections are separated by the two long aisles going from"]
["front to rear of room. Row 1 is nearest front & row 11 is nearest back. Seat"]
["numbers start from left to right (looking to front of room) within each"]
["section & row. (Ex: Middle Section: Row 1 has 1-9 seats.)"]
[]
["Below, enter your six-digit Test \"PIN\" given to you in Blackboard."]
[null,null,"ENTER YOUR PIN HERE →",123456,{"$f":"IF(VLOOKUP($D$9,DataBasez!$A$11:$V$295,A10)=$D$9,\"Valid PIN\",\"Invalid PIN\")","v":"Invalid PIN"}]
[1,{"$f":"1+A10","v":2},{"$f":"1+B10","v":3},{"$f":"1+C10","v":4},{"$f":"1+D10","v":5},{"$f":"1+E10","v":6},{"$f":"1+F10","v":7},{"$f":"1+G10","v":8},{"$f":"1+H10","v":9},{"$f":"1+I10","v":10},{"$f":"1+J10","v":11},{"$f":"1+K10","v":12},{"$f":"1+L10","v":13},{"$f":"1+M10","v":14},{"$f":"1+N10","v":15},{"$f":"1+O10","v":16},{"$f":"1+P10","v":17},{"$f":"1+Q10","v":18},{"$f":"1+R10","v":19},{"$f":"1+S10","v":20}]
[null,"Your Seat Number:"]
[null,{"$f":"IF($E$9=\"Valid PIN\",VLOOKUP($D$9,DataBasez!$A$11:$V$261,B10),\"\")","v":""}]

{"sheet":"DataBasez","index":1,"n_rows":261,"n_cols":23,"rows_kept":261,"cut":false,"hidden":true,"merged":[]}
[]
[]
[]
[]
[]
[]
[]
[{"$f":"A!A10","v":1},{"$f":"A!B10","v":2},{"$f":"A!C10","v":3},{"$f":"A!D10","v":4},{"$f":"A!E10","v":5},{"$f":"A!F10","v":6},{"$f":"A!G10","v":7},{"$f":"A!H10","v":8},{"$f":"A!I10","v":9},{"$f":"A!J10","v":10},{"$f":"A!K10","v":11},{"$f":"A!L10","v":12},{"$f":"A!M10","v":13},{"$f":"A!N10","v":14},{"$f":"A!O10","v":15},{"$f":"A!P10","v":16},{"$f":"A!Q10","v":17},{"$f":"A!R10","v":18},{"$f":"A!S10","v":19},{"$f":"A!T10","v":20},{"$f":"A!U10","v":0},{"$f":"A!V10","v":0},{"$f":"A!W10","v":0}]
[{"$f":"A!A11","v":0},{"$f":"A!B11","v":"Your Seat Number:"},{"$f":"A!C11","v":0},{"$f":"A!D11","v":0},{"$f":"A!E11","v":0},{"$f":"A!F11","v":0},{"$f":"A!G11","v":0},{"$f":"A!H11","v":0},{"$f":"A!I11","v":0},{"$f":"A!J11","v":0},{"$f":"A!K11","v":0},{"$f":"A!L11","v":0},{"$f":"A!M11","v":0},{"$f":"A!N11","v":0},{"$f":"A!O11","v":0},{"$f":"A!P11","v":0},{"$f":"A!Q11","v":0},{"$f":"A!R11","v":0},{"$f":"A!S11","v":0},{"$f":"A!T11","v":0},{"$f":"A!U11","v":0},{"$f":"A!V11","v":0},{"$f":"A!W11","v":0}]
["For instructions see: Web Grades Workbook.doc. In Excel 2007 use \"Review\" Tab to protect."]
[-99999999,"Dummy row: do not delete!"]
[100043,"Left Section: Row 1 Seat 1",null,null,1]
[100061,"Left Section: Row 1 Seat 2",null,null,2]
[100323,"Left Section: Row 1 Seat 3",null,null,3]
[100363,"Left Section: Row 1 Seat 4",null,null,4]
[102456,"Left Section: Row 2 Seat 1",null,null,5]
[103035,"Left Section: Row 2 Seat 2",null,null,6]
[103143,"Left Section: Row 2 Seat 3",null,null,7]
[103448,"Left Section: Row 2 Seat 4",null,null,8]
[104366,"Left Section: Row 3 Seat 1",null,null,9]
[104548,"Left Section: Row 3 Seat 2",null,null,10]
[104717,"Left Section: Row 3 Seat 3",null,null,11]
[105906,"Left Section: Row 3 Seat 4",null,null,12]
[106492,"Left Section: Row 3 Seat 5",null,null,13]
[107035,"Left Section: Row 4 Seat 1",null,null,14]
[107423,"Left Section: Row 4 Seat 2",null,null,15]
[107735,"Left Section: Row 4 Seat 3",null,null,16]
[107762,"Left Section: Row 4 Seat 4",null,null,17]
[108185,"Left Section: Row 4 Seat 5",null,null,18]
[109450,"Left Section: Row 5 Seat 1",null,null,19]
[110223,"Left Section: Row 5 Seat 2",null,null,20]
[110887,"Left Section: Row 5 Seat 3",null,null,21]
[111144,"Left Section: Row 5 Seat 4",null,null,22]
[111227,"Left Section: Row 5 Seat 5",null,null,23]
[112335,"Left Section: Row 5 Seat 6",null,null,24]
[112535,"Left Section: Row 6 Seat 1",null,null,25]
[112799,"Left Section: Row 6 Seat 2",null,null,26]
[113024,"Left Section: Row 6 Seat 3",null,null,27]
[113122,"Left Section: Row 6 Seat 4",null,null,28]
[113373,"Left Section: Row 6 Seat 5",null,null,29]
[114204,"Left Section: Row 6 Seat 6",null,null,30]
[115204,"Left Section: Row 7 Seat 1",null,null,31]
[115993,"Left Section: Row 7 Seat 3",null,null,32]
[116063,"Left Section: Row 7 Seat 5",null,null,33]
[116071,"Left Section: Row 7 Seat 7",null,null,34]
[116519,"Middle Section: Row 1 Seat 1",null,null,35]
[116938,"Middle Section: Row 1 Seat 2",null,null,36]
[117445,"Middle Section: Row 1 Seat 3",null,null,37]
[117964,"Middle Section: Row 1 Seat 4",null,null,38]
[118994,"Left Section: Row 8 Seat 3",null,null,39]
[119038,"Middle Section: Row 1 Seat 5",null,null,40]
[120640,"Middle Section: Row 1 Seat 6",null,null,41]
[121075,"Middle Section: Row 1 Seat 7",null,null,42]
[121897,"Middle Section: Row 1 Seat 8",null,null,43]
[122792,"Middle Section: Row 1 Seat 9",null,null,44]
[123261,"Middle Section: Row 2 Seat 1",null,null,45]
[123308,"Middle Section: Row 2 Seat 2",null,null,46]
[124568,"Middle Section: Row 2 Seat 3",null,null,47]
[124787,"Middle Section: Row 2 Seat 4",null,null,48]
[125012,"Middle Section: Row 2 Seat 5",null,null,49]
[125113,"Middle Section: Row 2 Seat 6",null,null,50]
[125805,"Middle Section: Row 2 Seat 7",null,null,51]
[128042,"Middle Section: Row 2 Seat 8",null,null,52]
[128355,"Middle Section: Row 2 Seat 9",null,null,53]
[130071,"Middle Section: Row 2 Seat 10",null,null,54]
[130090,"Middle Section: Row 3 Seat 1",null,null,55]
[131205,"Middle Section: Row 3 Seat 2",null,null,56]
[131346,"Middle Section: Row 3 Seat 3",null,null,57]
[132468,"Middle Section: Row 3 Seat 4",null,null,58]
[132605,"Middle Section: Row 3 Seat 5",null,null,59]
[133039,"Middle Section: Row 3 Seat 6",null,null,60]
[133491,"Middle Section: Row 3 Seat 7",null,null,61]
[133844,"Middle Section: Row 3 Seat 8",null,null,62]
[134244,"Middle Section: Row 3 Seat 9",null,null,63]
[134286,"Middle Section: Row 3 Seat 10",null,null,64]
[134593,"Middle Section: Row 3 Seat 11",null,null,65]
[134693,"Middle Section: Row 4 Seat 1",null,null,66]
[136251,"Middle Section: Row 4 Seat 2",null,null,67]
[136492,"Middle Section: Row 4 Seat 3",null,null,68]
[137131,"Middle Section: Row 4 Seat 4",null,null,69]
[137153,"Middle Section: Row 4 Seat 5",null,null,70]
[137861,"Middle Section: Row 4 Seat 6",null,null,71]
[137890,"Middle Section: Row 4 Seat 7",null,null,72]
[138098,"Middle Section: Row 4 Seat 8",null,null,73]
[138831,"Middle Section: Row 4 Seat 9",null,null,74]
[138968,"Middle Section: Row 4 Seat 10",null,null,75]
[139009,"Middle Section: Row 4 Seat 11",null,null,76]
[139122,"Middle Section: Row 4 Seat 12",null,null,77]
[140105,"Middle Section: Row 5 Seat 1",null,null,78]
[140489,"Middle Section: Row 5 Seat 2",null,null,79]
[140505,"Middle Section: Row 5 Seat 3",null,null,80]
[141215,"Middle Section: Row 5 Seat 4",null,null,81]
[141232,"Middle Section: Row 5 Seat 5",null,null,82]
[141674,"Middle Section: Row 5 Seat 6",null,null,83]
[141745,"Middle Section: Row 5 Seat 7",null,null,84]
[142016,"Middle Section: Row 5 Seat 8",null,null,85]
[142292,"Middle Section: Row 5 Seat 9",null,null,86]
[142612,"Middle Section: Row 5 Seat 10",null,null,87]
[143040,"Middle Section: Row 5 Seat 11",null,null,88]
[143061,"Middle Section: Row 5 Seat 12",null,null,89]
[143481,"Middle Section: Row 5 Seat 13",null,null,90]
[145981,"Middle Section: Row 6 Seat 1",null,null,91]
[146905,"Middle Section: Row 6 Seat 2",null,null,92]
[147476,"Middle Section: Row 6 Seat 3",null,null,93]
[150130,"Middle Section: Row 6 Seat 4",null,null,94]
[150210,"Middle Section: Row 6 Seat 5",null,null,95]
[151004,"Middle Section: Row 6 Seat 6",null,null,96]
[151054,"Middle Section: Row 6 Seat 7",null,null,97]
[151057,"Middle Section: Row 6 Seat 8",null,null,98]
[152821,"Middle Section: Row 6 Seat 9",null,null,99]
[153213,"Middle Section: Row 6 Seat 10",null,null,100]
[154224,"Middle Section: Row 6 Seat 11",null,null,101]
[154231,"Middle Section: Row 6 Seat 12",null,null,102]
[155029,"Middle Section: Row 6 Seat 13",null,null,103]
[155310,"Middle Section: Row 6 Seat 14",null,null,104]
[156067,"Middle Section: Row 7 Seat 1",null,null,105]
[156672,"Middle Section: Row 7 Seat 3",null,null,106]
[156852,"Left Section: Row 8 Seat 5",null,null,107]
[157189,"Middle Section: Row 7 Seat 5",null,null,108]
[159520,"Middle Section: Row 7 Seat 7",null,null,109]
[160132,"Middle Section: Row 7 Seat 9",null,null,110]
[160210,"Middle Section: Row 7 Seat 11",null,null,111]
[160288,"Middle Section: Row 7 Seat 13",null,null,112]
[161067,"Middle Section: Row 7 Seat 15",null,null,113]
[161484,"Middle Section: Row 8 Seat 1",null,null,114]
[161714,"Middle Section: Row 8 Seat 3",null,null,115]
[161732,"Middle Section: Row 8 Seat 5",null,null,116]
[163834,"Middle Section: Row 8 Seat 7",null,null,117]
[165017,"Middle Section: Row 8 Seat 9",null,null,118]
[165070,"Middle Section: Row 8 Seat 11",null,null,119]
[165446,"Middle Section: Row 8 Seat 13",null,null,120]
[166134,"Middle Section: Row 8 Seat 15",null,null,121]
[166176,"Middle Section: Row 9 Seat 1",null,null,122]
[166517,"Middle Section: Row 9 Seat 3",null,null,123]
[166894,"Middle Section: Row 9 Seat 5",null,null,124]
[167329,"Middle Section: Row 9 Seat 7",null,null,125]
[167561,"Middle Section: Row 9 Seat 9",null,null,126]
[167761,"Middle Section: Row 9 Seat 11",null,null,127]
[168269,"Middle Section: Row 9 Seat 13",null,null,128]
[168435,"Middle Section: Row 10 Seat 1",null,null,129]
[168927,"Middle Section: Row 10 Seat 3",null,null,130]
[169011,"Middle Section: Row 10 Seat 5",null,null,131]
[169073,"Middle Section: Row 10 Seat 7",null,null,132]
[170380,"Middle Section: Row 10 Seat 9",null,null,133]
[172516,"Middle Section: Row 10 Seat 11",null,null,134]
[175261,"Middle Section: Row 10 Seat 13",null,null,135]
[175974,"Middle Section: Row 11 Seat 1",null,null,136]
[177443,"Middle Section: Row 11 Seat 3",null,null,137]
[177918,"Middle Section: Row 11 Seat 5",null,null,138]
[177933,"Middle Section: Row 11 Seat 7",null,null,139]
[178437,"Middle Section: Row 11 Seat 9",null,null,140]
[178801,"Middle Section: Row 11 Seat 11",null,null,141]
[180398,"Middle Section: Row 11 Seat 13",null,null,142]
[180829,"Middle Section: Row 11 Seat 16",null,null,143]
[180915,"Left Section: Row 9 Seat 3",null,null,144]
[181157,"Right Section: Row 1 Seat 1",null,null,145]
[181187,"Right Section: Row 1 Seat 2",null,null,146]
[181222,"Right Section: Row 1 Seat 3",null,null,147]
[181288,"Right Section: Row 1 Seat 4",null,null,148]
[182078,"Right Section: Row 1 Seat 5",null,null,149]
[183252,"Right Section: Row 2 Seat 1",null,null,150]
[183789,"Right Section: Row 2 Seat 3",null,null,151]
[184899,"Left Section: Row 11 Seat 3",null,null,152]
[184932,"Right Section: Row 2 Seat 5",null,null,153]
[185126,"Right Section: Row 3 Seat 1",null,null,154]
[185294,"Right Section: Row 3 Seat 3",null,null,155]
[186106,"Right Section: Row 3 Seat 6",null,null,156]
[186272,"Right Section: Row 4 Seat 1",null,null,157]
[186808,"Right Section: Row 4 Seat 3",null,null,158]
[188424,"Right Section: Row 4 Seat 6",null,null,159]
[190535,"Right Section: Row 5 Seat 1",null,null,160]
[190608,"Right Section: Row 5 Seat 3",null,null,161]
[191137,"Right Section: Row 5 Seat 6",null,null,162]
[191252,"Right Section: Row 6 Seat 1",null,null,163]
[192107,"Right Section: Row 6 Seat 3",null,null,164]
[193395,"Right Section: Row 6 Seat 5",null,null,165]
[193412,"Right Section: Row 6 Seat 7",null,null,166]
[194083,"Right Section: Row 7 Seat 1",null,null,167]
[194628,"Right Section: Row 7 Seat 3",null,null,168]
[196583,"Right Section: Row 7 Seat 5",null,null,169]
[197044,"Right Section: Row 7 Seat 7",null,null,170]
[197325,"Right Section: Row 8 Seat 1",null,null,171]
[197544,"Right Section: Row 8 Seat 3",null,null,172]
[197625,"Right Section: Row 8 Seat 5",null,null,173]
[197641,"Right Section: Row 9 Seat 1",null,null,174]
[199471,"Left Section: Row 10 Seat 3",null,null,175]
[199503,"Right Section: Row 9 Seat 3",null,null,176]
[199536,"Right Section: Row 10 Seat 1",null,null,177]
[199709,"Right Section: Row 10 Seat 3",null,null,178]
[null,null,null,null,179]
[null,null,null,null,180]
[null,null,null,null,181]
[null,null,null,null,182]
[null,null,null,null,183]
[null,null,null,null,184]
[null,null,null,null,185]
[null,null,null,null,186]
[null,null,null,null,187]
[null,null,null,null,188]
[null,null,null,null,189]
[null,null,null,null,190]
[null,null,null,null,191]
[null,null,null,null,192]
[null,null,null,null,193]
[null,null,null,null,194]
[null,null,null,null,195]
[null,null,null,null,196]
[null,null,null,null,197]
[null,null,null,null,198]
[null,null,null,null,199]
[null,null,null,null,200]
[null,null,null,null,201]
[null,null,null,null,202]
[null,null,null,null,203]
[null,null,null,null,204]
[null,null,null,null,205]
[null,null,null,null,206]
[null,null,null,null,207]
[null,null,null,null,208]
[null,null,null,null,209]
[null,null,null,null,210]
[null,null,null,null,211]
[null,null,null,null,212]
[null,null,null,null,213]
[null,null,null,null,214]
[null,null,null,null,215]
[null,null,null,null,216]
[null,null,null,null,217]
[null,null,null,null,218]
[null,null,null,null,219]
[null,null,null,null,220]
[null,null,null,null,221]
[null,null,null,null,222]
[null,null,null,null,223]
[null,null,null,null,224]
[null,null,null,null,225]
[null,null,null,null,226]
[null,null,null,null,227]
[null,null,null,null,228]
[null,null,null,null,229]
[null,null,null,null,230]
[null,null,null,null,231]
[null,null,null,null,232]
[null,null,null,null,233]
[null,null,null,null,234]
[null,null,null,null,235]
[null,null,null,null,236]
[null,null,null,null,237]
[null,null,null,null,238]
[null,null,null,null,239]
[null,null,null,null,240]
[null,null,null,null,241]
[null,null,null,null,242]
[null,null,null,null,243]
[null,null,null,null,244]
[null,null,null,null,245]
[null,null,null,null,246]
[null,null,null,null,247]
[null,null,null,null,248]
[null,null,null,null,249]
[null,null,null,null,250]